bitfinex-derivatives/quotes_ETHF0:USTF0_20250416
["timestamp","ask_amount","ask_price","bid_price","bid_amount"]
[1744777717963,21.04122293,1581.6,1581.5,43.68885]
[1744777718463,21.04122293,1581.6,1581.5,42.06465]
[1744777720165,21.04122293,1581.6,1581.5,40.8]
[1744777720367,21.04122293,1581.6,1581.5,42.06472]
[1744777722457,19.40362293,1581.6,1581.5,42.06472]
[1744777722662,21.04652293,1581.6,1581.5,42.06472]
[1744777722866,21.04652293,1581.6,1581.5,43.69002]
[1744777724373,21.04652293,1581.6,1581.5,46.89782]
[1744777724672,1.6429,1581.6,1581.5,46.89782]
[1744777726763,21.04652293,1581.6,1581.5,45.27252]
[1744777727067,35.13262029,1581.6,1581.5,42.06472]
[1744777727266,37.36036029,1581.6,1581.5,42.06472]
[1744777727467,37.36036029,1581.6,1581.5,40.8]
[1744777727667,36.09572029,1581.6,1581.5,42.06472]
[1744777739478,35.13262029,1581.6,1581.5,42.06472]
[1744777740078,39.60506029,1581.6,1581.5,40.8]
[1744777740472,39.60506029,1581.6,1581.5,42.06472]
[1744777740768,38.34042029,1581.6,1581.5,42.06472]
[1744777740971,35.13262029,1581.6,1581.5,42.06472]
[1744777741182,38.34042029,1581.6,1581.5,42.06472]
[1744777741372,35.13262029,1581.6,1581.5,42.06472]
[1744777748180,0.00623933,1582.1,1582.0,1.26432]
[1744777748385,17.74624293,1582.0,1581.9,5.92533]
[1744777748684,22.70394293,1582.0,1581.9,5.92533]
[1744777748984,36.79004029,1582.0,1581.9,5.92533]
[1744777750185,36.79004029,1582.0,1581.9,4.661]
[1744777750386,38.05436029,1582.0,1581.9,4.661]
[1744777750685,43.05436029,1582.0,1581.8,1.26446]
[1744777750988,33.58224029,1581.9,1581.8,1.26446]
[1744777755282,34.84664029,1581.9,1581.8,1.26446]
[1744777755483,33.58224029,1581.9,1581.8,1.26446]
[1744777755789,34.84664029,1581.9,1581.8,1.26446]
[1744777756998,33.58224029,1581.9,1581.6,8.39698768]
[1744777757293,18.55845736,1581.7,1581.6,9.66158768]
[1744777758589,39.90960029,1581.7,1581.6,9.66158768]
[1744777759393,39.90960029,1581.7,1581.6,1.2646]
[1744777761193,36.70180029,1581.7,1581.6,1.2646]
[1744777761387,19.42714293,1581.7,1581.6,1.2646]
[1744777761594,17.74624293,1581.7,1581.6,6.0975]
[1744777761785,17.74624293,1581.7,1581.6,7.3948]
[1744777762985,1.4311,1582.0,1581.9,1.2644]
[1744777763191,19.48744293,1582.0,1581.9,5.9094]
[1744777763585,17.74624293,1582.0,1581.9,7.5345]
[1744777763786,17.74624293,1582.0,1581.9,8.8752]
[1744777764398,0.00623933,1582.1,1582.0,1.26432]
[1744777764691,0.00623933,1582.1,1582.0,7.37392]
[1744777764996,0.00623933,1582.1,1582.0,12.37392]
[1744777765492,17.75248226,1582.1,1582.0,4.47212]
[1744777765693,17.75248226,1582.1,1582.0,1.26432]
[1744777766087,31.83857962,1582.1,1582.0,1.26432]
[1744777766481,33.46497962,1582.1,1582.0,1.26432]
[1744777767591,33.46497962,1582.1,1582.0,29.46686322]
[1744777768695,33.45606932,1582.1,1582.0,29.46686322]
[1744777769995,33.45606932,1582.1,1582.0,1.26432]
[1744777772283,38.45606932,1582.1,1581.9,9.69448176]
[1744777772487,39.31678932,1582.0,1581.9,8.43013176]
[1744777772686,21.57321736,1582.0,1581.9,9.69453176]
[1744777772884,38.05246932,1582.0,1581.9,9.69453176]
[1744777773186,38.05246932,1582.0,1581.9,1.2644]
[1744777773895,39.31678932,1582.0,1581.9,1.2644]
[1744777774191,38.05246932,1582.0,1581.9,1.2644]
[1744777774786,34.84466932,1582.0,1581.9,1.2644]
[1744777774989,33.42117196,1582.0,1581.9,1.2644]
[1744777775192,34.84466932,1582.0,1581.9,1.2644]
[1744777779402,19.42927196,1582.0,1581.9,1.2644]
[1744777780494,1.6857,1582.0,1581.9,6.2644]
[1744777780796,19.42927196,1582.0,1581.9,2.8892]
[1744777785807,37.98751932,1582.0,1581.8,9.69454176]
[1744777785999,36.25496932,1581.9,1581.8,9.69454176]
[1744777788603,36.25496932,1581.9,1581.8,1.26441]
[1744777791205,22.16887196,1581.9,1581.8,1.26441]
[1744777792302,1.6321,1581.9,1581.8,9.47221]
[1744777792694,1.6321,1581.9,1581.8,11.06021]
[1744777792902,19.37567196,1581.9,1581.8,4.47221]
[1744777793397,19.37567196,1581.9,1581.8,1.26441]
[1744777795298,33.46176932,1581.9,1581.8,1.26441]
[1744777800602,19.37567196,1581.9,1581.8,1.26441]
[1744777800904,19.37567196,1581.9,1581.8,2.89001]
[1744777801503,33.46176932,1581.9,1581.8,1.26441]
[1744777801908,33.46176932,1581.9,1581.8,9.69454176]
[1744777804607,33.46176932,1581.9,1581.8,1.26441]
[1744777808112,33.46176932,1581.9,1581.8,9.69454176]
[1744777817615,34.72616932,1581.9,1581.8,8.43013176]
[1744777817823,33.46176932,1581.9,1581.8,9.69461176]
[1744777819124,34.72616932,1581.9,1581.8,9.69461176]
[1744777820922,34.72616932,1581.9,1581.8,1.26448]
[1744777823323,1.26448,1581.8,1581.7,9.69463176]
[1744777823526,40.85924932,1581.8,1581.7,9.69463176]
[1744777824121,40.85924932,1581.8,1581.7,8.43013176]
[1744777824427,45.85924932,1581.8,1581.7,8.42062093]
[1744777824628,1.26464,1581.6,1581.5,50.48532093]
[1744777824919,22.56367196,1581.7,1581.6,1.26464]
[1744777825124,23.82825196,1581.7,1581.6,1.26464]
[1744777825327,37.91434932,1581.7,1581.6,1.26464]
[1744777825721,1.26464,1581.6,1581.5,50.48528093]
[1744777825928,34.81660932,1581.6,1581.5,50.48528093]
[1744777826623,33.55196932,1581.6,1581.5,50.48528093]
[1744777826923,19.46587196,1581.6,1581.5,50.48528093]
[1744777828427,17.74357196,1581.6,1581.5,46.53066]
[1744777828620,1.7282,1581.9,1581.8,1.26448]
[1744777828820,3.15169736,1581.9,1581.8,1.26448]
[1744777829028,33.55786932,1581.9,1581.8,1.26448]
[1744777829729,33.55786932,1581.9,1581.8,2.89058]
[1744777830230,33.55786932,1581.9,1581.8,1.26448]
[1744777830627,34.82226932,1581.9,1581.7,1.26453]
[1744777830827,34.96746932,1581.8,1581.7,1.26453]
[1744777831025,17.22389736,1581.8,1581.7,1.26453]
[1744777831227,20.88137196,1581.8,1581.7,1.26453]
[1744777832736,20.88137196,1581.8,1581.7,2.85613]
[1744777835136,2.75651,1582.1,1582.0,1.26432]
[1744777835137,1.4922,1582.1,1582.0,1.26432]
[1744777835335,17.74357196,1582.1,1581.8,10.73704]
[1744777835526,12.1447,1582.7,1582.5,1.26389]
[1744777835730,12.6626,1582.4,1582.3,5.73008]
[1744777835928,14.08609736,1582.4,1582.3,5.73008]
[1744777836136,30.40617196,1582.4,1582.3,5.73008]
[1744777836436,31.82966932,1582.4,1582.2,2.97928016]
[1744777836641,33.41946932,1582.3,1582.2,5.73957016]
[1744777836833,15.67589736,1582.3,1582.2,5.73957016]
[1744777837141,33.41946932,1582.3,1582.2,5.73957016]
[1744777837638,33.41946932,1582.3,1582.2,4.47548016]
[1744777837845,33.41946932,1582.3,1582.2,0.00948016]
[1744777838143,33.41946932,1582.3,1582.2,1.27364016]
[1744777841341,31.99597196,1582.3,1582.2,1.27364016]
[1744777841542,17.74357196,1582.3,1582.2,6.10594016]
[1744777841843,17.74357196,1582.3,1582.2,2.89814016]
[1744777842043,17.74357196,1582.3,1582.2,6.10594016]
[1744777842240,30.40617196,1582.3,1582.2,1.27364016]
[1744777842846,32.06127196,1582.3,1582.2,1.27364016]
[1744777843245,19.39867196,1582.3,1582.2,1.27364016]
[1744777843442,19.39867196,1582.3,1582.2,2.68724016]
[1744777846449,19.39867196,1582.3,1582.2,5.89504016]
[1744777846644,17.74357196,1582.3,1582.2,5.89504016]
[1744777847251,4.9165,1582.5,1582.4,1.264]
[1744777847452,9.1438,1583.0,1582.4,7.6358]
[1744777847643,14.08609736,1582.7,1582.6,1.26384]
[1744777847949,14.08609736,1582.7,1582.6,43.68834]
[1744777848149,19.45227196,1582.7,1582.6,43.68834]
[1744777848548,33.53836932,1582.7,1582.6,42.06384]
[1744777849749,34.80212932,1582.7,1582.6,40.8]
[1744777850143,33.53836932,1582.7,1582.6,42.06384]
[1744777851751,9.02975893,1583.0,1582.9,1.2636]
[1744777851951,1.7506,1583.1,1583.0,1.26352]
[1744777852256,15.83669736,1583.1,1583.0,1.26352]
[1744777852556,9.02975893,1583.1,1583.0,2.88802]
[1744777853152,9.02975893,1583.1,1583.0,1.26352]
[1744777854657,23.11585629,1583.1,1582.9,8.90882016]
[1744777854963,26.36975629,1583.0,1582.9,5.70102016]
[1744777855654,26.36975629,1583.0,1582.9,0.00948016]
[1744777855856,27.63327629,1583.0,1582.9,0.00948016]
[1744777856256,26.36975629,1583.0,1582.9,0.00948016]
[1744777856651,27.63327629,1583.0,1582.9,0.00948016]
[1744777856852,26.36975629,1583.0,1582.9,1.27308016]
[1744777857158,26.36975629,1583.0,1582.9,0.00948016]
[1744777857455,27.63327629,1583.0,1582.9,0.00948016]
[1744777858459,26.36975629,1583.0,1582.9,0.00948016]
[1744777858757,27.63327629,1583.0,1582.9,0.00948016]
[1744777859149,26.36975629,1583.0,1582.9,1.27308016]
[1744777861365,12.28365893,1583.0,1582.9,1.27308016]
[1744777862358,27.63327629,1583.0,1582.9,0.00948016]
[1744777862561,26.36975629,1583.0,1582.9,1.27308016]
[1744777862862,12.28365893,1583.0,1582.9,1.27308016]
[1744777863249,3.2078,1583.5,1582.9,9.48088016]
[1744777863452,1.6238,1583.2,1583.1,1.26344]
[1744777863758,12.6626,1583.1,1583.0,5.68949]
[1744777863955,24.57555629,1583.1,1583.0,1.26349]
[1744777864154,26.19935629,1583.1,1583.0,5.68949]
[1744777864353,26.19935629,1583.1,1582.9,5.69904016]
[1744777864555,27.44557629,1583.0,1582.9,4.43548016]
[1744777864850,26.18205629,1583.0,1582.9,1.27308016]
[1744777865051,24.75855893,1583.0,1582.9,1.27308016]
[1744777865256,12.09595893,1583.0,1582.9,1.27308016]
[1744777867263,12.09595893,1583.0,1582.9,4.48088016]
[1744777868267,10.65355893,1583.0,1582.9,4.48088016]
[1744777868465,10.65355893,1583.0,1582.9,6.01898016]
[1744777869063,1.6238,1583.0,1582.9,11.01898016]
[1744777869567,1.6238,1583.0,1582.9,6.01898016]
[1744777870665,1.4397,1583.2,1583.1,1.26344]
[1744777870869,17.26779736,1583.2,1583.1,1.26344]
[1744777871063,26.29755629,1583.2,1583.1,1.26344]
[1744777871864,12.21145893,1583.2,1583.1,1.26344]
[1744777872569,24.87405893,1583.2,1583.1,1.26344]
[1744777873267,26.29755629,1583.2,1583.1,1.26344]
[1744777874065,13.63495629,1583.2,1583.1,1.26344]
[1744777874271,26.29755629,1583.2,1583.1,1.26344]
[1744777875868,48.02592629,1583.2,1582.6,40.8]
[1744777876067,14.08609736,1582.7,1582.6,1.26378]
[1744777876566,27.90835629,1582.7,1582.6,42.06378]
[1744777878368,12.25065893,1582.7,1582.6,42.06378]
[1744777878564,29.04971629,1582.7,1582.6,40.8]
[1744777878769,29.04971629,1582.7,1582.6,42.06384]
[1744777878957,29.04971629,1582.7,1582.5,0.00948016]
[1744777878958,1.26384,1582.6,1582.5,0.00948016]
[1744777879157,26.09889629,1582.6,1582.5,0.00948016]
[1744777879557,24.83505629,1582.6,1582.5,1.27340016]
[1744777879763,26.09889629,1582.6,1582.5,0.00948016]
[1744777880778,26.09889629,1582.6,1582.5,1.27340016]
[1744777881271,24.83505629,1582.6,1582.5,1.27340016]
[1744777882573,26.09889629,1582.6,1582.5,1.27340016]
[1744777882774,29.30669629,1582.6,1582.5,1.27340016]
[1744777883071,29.30669629,1582.6,1582.5,0.00948016]
[1744777883576,3.15981,1582.5,1582.1,1.26421]
[1744777883871,14.08609736,1582.2,1582.1,1.26421]
[1744777884072,14.08609736,1582.2,1582.1,42.06421]
[1744777884276,26.00651629,1582.2,1582.1,42.06421]
[1744777884573,24.74235629,1582.2,1582.1,42.06421]
[1744777885071,1.26424,1582.1,1582.0,1.27373016]
[1744777885267,29.08859629,1582.1,1582.0,1.27380016]
[1744777885471,27.82435629,1582.1,1582.0,1.27380016]
[1744777885874,29.08859629,1582.1,1582.0,0.00948016]
[1744777888072,27.82435629,1582.1,1582.0,1.27380016]
[1744777888375,27.82435629,1582.1,1582.0,0.00948016]
[1744777888668,29.08859629,1582.1,1582.0,0.00948016]
[1744777888875,27.82435629,1582.1,1582.0,1.27380016]
[1744777889175,29.08859629,1582.1,1582.0,0.00948016]
[1744777892070,29.08859629,1582.1,1582.0,1.27380016]
[1744777892474,29.08859629,1582.1,1582.0,0.00948016]
[1744777892774,26.28015629,1582.1,1582.0,1.27380016]
[1744777894683,27.54439629,1582.1,1582.0,0.00948016]
[1744777895370,27.54439629,1582.1,1582.0,1.27380016]
[1744777895571,12.19405893,1582.1,1582.0,1.27380016]
[1744777895975,10.65625893,1582.1,1582.0,6.27380016]
[1744777896183,1.5738,1582.3,1582.2,1.26416]
[1744777896480,9.02975893,1582.3,1582.2,1.26416]
[1744777896680,1.5265,1582.6,1582.3,1.26408]
[1744777896873,9.02975893,1582.6,1582.5,1.26392]
[1744777897073,0.00937797,1582.8,1582.7,1.26376]
[1744777897274,0.00937797,1582.8,1582.7,5.75176]
[1744777897473,0.00937797,1582.8,1582.7,12.37406]
[1744777897978,0.00937797,1582.8,1582.7,6.1103]
[1744777898185,1.26306,1583.6,1583.0,3.15881]
[1744777898483,1.7498,1583.5,1583.4,4.471]
[1744777898674,14.69959791,1583.7,1583.4,48.4958]
[1744777898982,14.4124,1583.6,1583.4,49.75894]
[1744777899174,1.7498,1583.5,1583.4,45.288]
[1744777899881,1.7498,1583.5,1583.4,48.4958]
[1744777900281,1.7498,1583.5,1583.4,49.759]
[1744777901083,1.7498,1583.5,1583.4,48.4958]
[1744777901282,15.83589736,1583.5,1583.4,40.8]
[1744777902378,22.09901736,1583.5,1583.4,40.8]
[1744777903174,22.09901736,1583.5,1583.3,0.00948016]
[1744777903374,15.68389736,1583.4,1583.3,1.27276016]
[1744777905194,16.94709736,1583.4,1583.3,0.00948016]
[1744777905389,16.94709736,1583.4,1583.3,1.27276016]
[1744777905685,16.94709736,1583.4,1583.3,0.00948016]
[1744777906083,16.94709736,1583.4,1583.3,1.27276016]
[1744777906386,15.68389736,1583.4,1583.3,1.27276016]
[1744777906585,16.94709736,1583.4,1583.3,0.00948016]
[1744777910289,12.6626,1583.4,1583.3,0.00948016]
[1744777910498,6.4541,1584.3,1583.5,3.1577]
[1744777910684,4.83251,1584.2,1583.6,11.1619]
[1744777910891,14.01753736,1583.9,1583.8,1.26288]
[1744777911389,11.33116,1583.9,1583.8,1.26288]
[1744777911586,1.6761,1584.0,1583.9,1.2628]
[1744777911790,2.71049,1584.1,1583.9,1.2628]
[1744777911986,12.75465736,1584.0,1583.9,1.2628]
[1744777912187,14.01742736,1584.0,1583.8,2.85682]
[1744777912390,12.75465736,1583.9,1583.8,2.85682]
[1744777912591,14.01745736,1583.9,1583.8,1.26282]
[1744777912788,12.75465736,1583.9,1583.8,1.26282]
[1744777913493,12.75465736,1583.9,1583.8,4.47062]
[1744777914091,1.4478,1584.1,1584.0,1.26272]
[1744777914290,12.75465736,1584.1,1584.0,1.26272]
[1744777914687,11.33116,1584.1,1584.0,1.26272]
[1744777914885,11.33116,1584.1,1584.0,2.84762]
[1744777915190,12.59384,1584.1,1583.9,6.05978]
[1744777915390,12.75465736,1584.0,1583.9,6.0598]
[1744777915792,1.26263,1584.2,1584.0,1.2627]
[1744777916186,14.01733736,1584.1,1583.9,7.64468]
[1744777916387,12.75465736,1584.0,1583.9,7.64468]
[1744777916588,12.75465736,1584.0,1583.9,6.05978]
[1744777916878,1.26268,1584.1,1583.9,6.05978]
[1744777917085,12.75465736,1584.0,1583.9,6.05978]
[1744777917485,12.75465736,1584.0,1583.9,4.797]
[1744777917694,12.75465736,1584.0,1583.9,6.0598]
[1744777918582,12.75465736,1584.0,1583.8,4.47063]
[1744777918783,1.26294,1583.8,1583.6,8.0038]
[1744777918990,12.75465736,1583.7,1583.6,4.796]
[1744777919696,20.91209736,1583.7,1583.3,0.00948016]
[1744777919895,12.75465736,1583.4,1583.3,1.27269016]
[1744777920101,14.01785736,1583.4,1583.3,0.00948016]
[1744777920696,14.01785736,1583.4,1583.3,1.27276016]
[1744777922000,14.01785736,1583.4,1583.3,0.00948016]
[1744777922301,14.01785736,1583.4,1583.3,1.27276016]
[1744777922599,8.9929,1583.5,1583.4,1.2632]
[1744777922787,9.1438,1583.9,1583.8,1.26288]
[1744777922994,3.2078,1584.2,1583.8,1.26288]
[1744777923200,12.75465736,1584.1,1584.0,3.2078]
[1744777923496,12.75465736,1584.1,1584.0,4.47052]
[1744777923700,5.96427,1584.4,1584.2,1.26251]
[1744777924197,12.75465736,1584.3,1584.2,1.26251]
[1744777924599,11.33116,1584.3,1584.2,1.26251]
[1744777924793,12.75465736,1584.3,1584.2,1.26251]
[1744777925094,11.33116,1584.3,1584.2,1.26251]
[1744777925801,11.33116,1584.3,1584.2,4.47031]
[1744777925996,11.33116,1584.3,1584.2,6.08861]
[1744777926293,11.33116,1584.3,1584.2,2.88081]
[1744777926501,11.33116,1584.3,1584.2,6.08861]
[1744777926698,3.2078,1585.3,1584.2,97.3711]
[1744777926997,1.42349736,1584.7,1584.5,1.2623]
[1744777927199,12.75465736,1584.5,1584.4,1.27187016]
[1744777927596,1.26221,1584.7,1584.4,46.86787016]
[1744777927796,12.75465736,1584.5,1584.4,45.60548016]
[1744777928197,1.42349736,1584.5,1584.4,46.86788016]
[1744777929000,1.26213,1584.8,1584.6,1.26219]
[1744777929302,12.75465736,1584.7,1584.6,1.26219]
[1744777929908,1.26213,1584.8,1584.6,1.26219]
[1744777930106,14.48685736,1584.7,1584.6,1.26219]
[1744777930508,1.7322,1584.7,1584.6,1.26219]
[1744777930805,2.99436,1584.7,1584.6,1.26219]
[1744777931107,1.7322,1584.7,1584.6,1.26219]
[1744777931707,1.7322,1584.7,1584.4,47.19998016]
[1744777931907,1.7322,1584.7,1584.6,1.26224]
[1744777932902,13.06336,1584.7,1584.6,1.26224]
[1744777933109,1.26224,1584.6,1584.4,46.86783016]
[1744777933304,14.35815736,1584.5,1584.4,42.07183016]
[1744777933607,14.35815736,1584.5,1584.4,42.07188016]
[1744777933905,3.02699736,1584.5,1584.4,42.07188016]
[1744777934405,15.62047736,1584.5,1584.4,0.00948016]
[1744777934604,1.26248,1584.3,1584.2,1.26256]
[1744777934798,2.68597736,1584.3,1584.2,1.26256]
[1744777934997,2.68597736,1584.3,1584.1,40.8]
[1744777934998,1.26256,1584.2,1584.1,40.8]
[1744777935194,14.22782,1584.2,1584.1,42.06264]
[1744777935397,15.65131736,1584.2,1584.1,42.06264]
[1744777935594,0.00948016,1584.6,1584.2,6.31246]
[1744777935796,1.42349736,1584.5,1584.4,1.2624]
[1744777936007,1.42349736,1584.5,1584.4,42.0624]
[1744777936203,1.64358016,1584.6,1584.5,1.26232]
[1744777936399,12.97474016,1584.6,1584.5,1.26232]
[1744777936604,15.66049752,1584.6,1584.5,1.26232]
[1744777937004,15.66054752,1584.6,1584.5,1.26232]
[1744777939009,1.26232,1584.5,1584.4,40.8]
[1744777939306,15.76177736,1584.5,1584.4,42.0624]
[1744777939506,4.43061736,1584.5,1584.4,42.0624]
[1744777939708,15.76177736,1584.5,1584.4,40.8]
[1744777940107,15.76177736,1584.5,1584.4,42.0624]
[1744777940519,15.76177736,1584.5,1584.4,40.8]
[1744777941015,15.76177736,1584.5,1584.4,42.0624]
[1744777941213,14.49945736,1584.5,1584.4,42.0624]
[1744777941613,15.76177736,1584.5,1584.4,1.2624]
[1744777941808,0.00948016,1584.6,1584.5,1.26232]
[1744777942011,0.00948016,1584.6,1584.5,6.19132]
[1744777942215,1.68538016,1584.6,1584.5,46.99132]
[1744777942415,15.70227752,1584.6,1584.5,46.99132]
[1744777942616,14.44003752,1584.6,1584.5,46.99132]
[1744777942822,15.70227752,1584.6,1584.5,46.99132]
[1744777943518,15.70227752,1584.6,1584.5,45.729]
[1744777943818,15.70227752,1584.6,1584.5,46.99132]
[1744777944011,15.70227752,1584.6,1584.5,45.729]
[1744777944616,10.87264175,1584.6,1584.5,45.729]
[1744777944816,10.87264175,1584.6,1584.5,40.8]
[1744777945122,10.87264175,1584.6,1584.5,1.26232]
[1744777945416,9.61040175,1584.6,1584.5,1.26232]
[1744777945612,2.80586,1584.8,1584.5,40.8]
[1744777945924,2.80586,1584.8,1584.6,2.87914]
[1744777945925,10.87256175,1584.7,1584.6,2.87914]
[1744777946221,1.26216,1584.7,1584.6,1.26224]
[1744777946517,10.87256175,1584.7,1584.6,1.26224]
[1744777947022,1.4594,1584.9,1584.8,1.26208]
[1744777947411,1.26208,1584.8,1584.7,2.98549]
[1744777947607,10.87248175,1584.8,1584.7,2.98549]
[1744777947819,11.26860175,1584.8,1584.7,2.98549]
[1744777948418,12.53068175,1584.8,1584.7,2.98549]
[1744777949122,5.936,1585.0,1584.7,1.7234]
[1744777949322,12.53064175,1584.9,1584.8,1.26205]
[1744777950323,1.26208,1584.8,1584.7,1.2621]
[1744777950521,11.36380175,1584.8,1584.7,1.2621]
[1744777950719,1.7534,1584.8,1584.7,4.4699]
[1744777950924,1.26197,1585.0,1584.9,1.26199]
[1744777951221,10.87237175,1585.0,1584.9,1.26199]
[1744777951422,1.26201,1584.9,1584.8,7.89653]
[1744777951615,1.26201,1584.9,1584.8,6.19003]
[1744777951616,9.61040175,1584.9,1584.8,6.19003]
[1744777951810,1.26199,1585.0,1584.9,1.26201]
[1744777952016,10.87239175,1585.0,1584.9,1.26201]
[1744777952826,3.0153,1585.1,1585.0,1.26193]
[1744777953028,12.62570175,1585.1,1585.0,1.26193]
[1744777953324,12.62570175,1585.1,1585.0,2.99763]
[1744777954319,5.936,1585.4,1585.3,1.26169]
[1744777954525,9.61040175,1585.3,1585.2,1.26177]
[1744777955216,1.26177,1585.2,1585.1,4.928]
[1744777955423,10.87217175,1585.2,1585.1,6.18985]
[1744777955723,12.52117175,1585.2,1585.1,6.18985]
[1744777957123,11.25940175,1585.2,1585.1,6.18985]
[1744777957319,1.26164,1585.4,1585.3,1.26162]
[1744777957625,10.87209175,1585.3,1585.2,2.9129]
[1744777958723,1.26177,1585.2,1585.1,6.18978]
[1744777958926,1.26185,1585.1,1585.0,1.26187]
[1744777959118,10.87225175,1585.1,1585.0,1.26187]
[1744777959317,12.49515175,1585.1,1585.0,1.26187]
[1744777959826,1.26193,1585.0,1584.9,10.99032016]
[1744777960020,1.6229,1585.0,1584.9,10.99032016]
[1744777960214,12.49523175,1585.0,1584.9,9.40622016]
[1744777960619,11.23330175,1585.0,1584.9,9.40622016]
[1744777960818,12.49523175,1585.0,1584.9,3.21728016]
[1744777961019,12.49523175,1585.0,1584.9,0.00948016]
[1744777964029,12.49523175,1585.0,1584.9,1.27149016]
[1744777965316,12.49523175,1585.0,1584.9,0.00948016]
[1744777965522,12.49523175,1585.0,1584.9,1.27149016]
[1744777966331,12.49523175,1585.0,1584.9,0.00948016]
[1744777967230,12.49523175,1585.0,1584.9,1.27149016]
[1744777968331,11.23330175,1585.0,1584.9,4.47929016]
[1744777968929,12.49523175,1585.0,1584.9,6.13539016]
[1744777969133,12.49523175,1585.0,1584.9,1.27149016]
[1744777969735,11.23330175,1585.0,1584.9,1.27149016]
[1744777970235,12.49523175,1585.0,1584.9,1.27149016]
[1744777970436,11.23330175,1585.0,1584.9,1.27149016]
[1744777970637,12.49523175,1585.0,1584.9,1.27149016]
[1744777973341,12.49523175,1585.0,1584.9,0.00948016]
[1744777974438,12.49523175,1585.0,1584.9,1.27149016]
[1744777976044,12.49523175,1585.0,1584.9,0.00948016]
[1744777977745,12.49523175,1585.0,1584.9,1.27149016]
[1744777979353,12.49523175,1585.0,1584.9,0.00948016]
[1744777979544,12.49523175,1585.0,1584.5,49.17103247]
[1744777979545,1.26224,1584.6,1584.5,8.37103247]
[1744777979850,9.61040175,1584.6,1584.5,9.63335247]
[1744777980244,10.87264175,1584.6,1584.5,9.63335247]
[1744777980448,12.61394175,1584.6,1584.5,9.63335247]
[1744777980953,11.35170175,1584.6,1584.5,9.63335247]
[1744777981252,17.61394175,1584.6,1584.5,8.37103247]
[1744777981449,12.61394175,1584.6,1584.5,8.37103247]
[1744777982552,12.61394175,1584.6,1584.4,42.07185016]
[1744777982553,1.26232,1584.5,1584.4,42.07185016]
[1744777982851,11.32710175,1584.5,1584.4,42.07185016]
[1744777983051,1.7167,1584.5,1584.4,42.07185016]
[1744777983244,0.00948016,1584.7,1584.6,1.26224]
[1744777983752,0.00948016,1584.7,1584.6,2.88024]
[1744777985750,1.27164016,1584.7,1584.6,1.26224]
[1744777985949,10.88204191,1584.7,1584.6,1.26224]
[1744777986352,1.27164016,1584.7,1584.6,1.26224]
[1744777986553,0.00948016,1584.7,1584.6,2.88024]
[1744777988356,1.27164016,1584.7,1584.6,2.88024]
[1744777988862,1.26224,1584.6,1584.5,9.26608]
[1744777989061,12.49554175,1584.6,1584.5,6.05828]
[1744777989364,2.88514,1584.6,1584.5,6.05828]
[1744777989661,2.88514,1584.6,1584.5,4.796]
[1744777989865,1.26232,1584.5,1584.4,40.80948016]
[1744777990056,14.06282175,1584.5,1584.4,40.80948016]
[1744777990565,14.06282175,1584.5,1584.4,49.18051263]
[1744777991863,14.06282175,1584.5,1584.4,8.38051263]
[1744777992270,14.06282175,1584.5,1584.4,9.64291263]
[1744777993763,14.06282175,1584.5,1584.4,1.27188016]
[1744777994471,9.61040175,1584.5,1584.4,1.27188016]
[1744777994672,9.61040175,1584.5,1584.4,2.88908016]
[1744777995172,11.33570175,1584.5,1584.4,2.88908016]
[1744777995473,1.7253,1584.5,1584.4,2.88908016]
[1744777995873,0.00948016,1584.7,1584.6,1.26224]
[1744777996175,11.28458191,1584.7,1584.6,1.26224]
[1744777996372,12.54674191,1584.7,1584.6,2.88754]
[1744777997376,11.28458191,1584.7,1584.6,2.88754]
[1744777997672,12.54674191,1584.7,1584.6,2.88754]
[1744777998579,12.54674191,1584.7,1584.6,1.26224]
[1744777998767,1.26224,1584.6,1584.5,4.47007]
[1744777998967,14.14394175,1584.6,1584.5,4.47007]
[1744777999169,14.14394175,1584.6,1584.5,1.26227]
[1744777999369,14.14394175,1584.6,1584.5,40.8]
[1744777999880,1.26232,1584.5,1584.4,8.38051263]
[1744778000175,12.55472175,1584.5,1584.4,49.18051263]
[1744778001475,12.55472175,1584.5,1584.4,50.44291263]
[1744778001678,11.29240175,1584.5,1584.4,53.65071263]
[1744778001881,11.29240175,1584.5,1584.4,45.27968016]
[1744778002073,11.29240175,1584.5,1584.4,42.07188016]
[1744778003377,11.29240175,1584.5,1584.4,45.27968016]
[1744778003576,0.00948016,1584.7,1584.4,49.01728016]
[1744778003779,1.6924,1584.9,1584.8,1.26208]
[1744778003975,12.81820175,1585.0,1584.9,1.26201]
[1744778004179,14.51060175,1585.0,1584.9,1.26201]
[1744778004374,14.51060175,1585.0,1584.9,42.06201]
[1744778004666,14.51060175,1585.0,1584.9,43.80901]
[1744778009485,11.30280175,1585.0,1584.9,43.80901]
[1744778010678,1.6924,1585.0,1584.9,43.80901]
[1744778014984,11.30280175,1585.0,1584.9,42.06201]
[1744778018184,5.936,1585.6,1585.0,3.15482]
[1744778018388,9.61040175,1585.4,1585.3,1.26169]
[1744778018690,9.61040175,1585.3,1585.2,3.21728016]
[1744778018882,14.01959175,1585.3,1585.2,40.80948016]
[1744778019082,14.01959175,1585.3,1585.2,42.07125016]
[1744778019287,12.75790175,1585.3,1585.2,42.07125016]
[1744778020090,12.75790175,1585.3,1585.2,47.00365016]
[1744778020589,3.1475,1585.3,1585.2,47.00365016]
[1744778020793,1.26153,1585.5,1585.4,1.26154]
[1744778021091,1.26161,1585.4,1585.3,1.26162]
[1744778021587,9.61040175,1585.4,1585.2,40.80948016]
[1744778021887,7.8639,1585.7,1585.4,1.26158]
[1744778021888,1.26158,1585.5,1585.4,1.26158]
[1744778022089,10.87198175,1585.5,1585.4,1.26158]
[1744778022583,12.55638175,1585.5,1585.4,1.26158]
[1744778024086,2.94598,1585.5,1585.4,1.26158]
[1744778024289,12.55638175,1585.5,1585.4,1.26158]
[1744778024790,11.29480175,1585.5,1585.4,1.26158]
[1744778025692,1.6844,1585.5,1585.4,1.26158]
[1744778025891,1.6844,1585.5,1585.4,4.46938]
[1744778027991,5.936,1585.6,1585.5,1.26153]
[1744778028195,7.19745,1585.6,1585.5,1.26153]
[1744778028396,16.80785175,1585.6,1585.5,1.26153]
[1744778029190,9.61040175,1585.6,1585.5,1.26153]
[1744778029397,2.92712,1585.7,1585.6,1.26145]
[1744778029593,11.27610175,1585.7,1585.6,1.26145]
[1744778029794,1.26143,1585.7,1585.5,1.6181]